bitfinex/quotes_SOLUSD_20250514
["timestamp","ask_amount","ask_price","bid_price","bid_amount"]
[1747184454928,6.69121938,182.05,182.02,19.6]
[1747184456228,25.91565088,182.06,182.02,19.6]
[1747184456395,19.2244315,182.06,182.02,19.6]
[1747184456601,25.91565088,182.06,182.02,19.6]
[1747184457828,6.69121938,182.05,182.02,19.6]
[1747184458532,7.09121938,182.05,182.02,19.6]
[1747184458897,5.49329817,182.04,182.02,19.6]
[1747184462008,5.49329817,182.04,182.03,6.69121938]
[1747184462316,5.89308433,182.05,182.03,6.69121938]
[1747184462518,5.89308433,182.05,182.04,6.69121938]
[1747184463276,5.89308433,182.05,182.02,19.6]
[1747184463426,5.89308433,182.05,182.01,19.56]
[1747184463607,12.58430371,182.05,182.01,26.25121938]
[1747184463810,12.58430371,182.05,182.01,19.56]
[1747184464128,26.31679478,182.05,182.01,19.56]
[1747184464714,19.6255754,182.05,182.01,19.56]
[1747184465028,6.69121938,182.02,181.98,1.61]
[1747184465337,5.49420361,182.01,181.98,1.61]
[1747184466112,5.49420361,182.01,181.99,6.69121938]
[1747184466363,5.49420361,182.01,181.98,1.61]
[1747184466364,5.49359995,182.03,182.0,6.69121938]
[1747184466639,5.49118664,182.11,182.03,0.14216157]
[1747184466940,5.49118664,182.11,182.07,6.69121938]
[1747184467116,5.49118664,182.11,182.06,6.69121938]
[1747184467445,20.41951083,182.11,182.06,6.69121938]
[1747184468021,20.41951083,182.11,182.04,19.56]
[1747184468222,6.69121938,182.09,182.04,26.25121938]
[1747184468731,6.69121938,182.07,182.04,19.56]
[1747184469237,39.72829145,182.11,182.04,19.56]
[1747184469443,5.49239303,182.07,182.04,19.56]
[1747184471223,5.49239303,182.07,182.06,6.69121938]
[1747184471926,5.49239303,182.07,182.05,6.69121938]
[1747184472242,5.49239303,182.07,182.06,6.69121938]
[1747184473448,19.22061949,182.1,182.06,6.69121938]
[1747184473614,25.91183887,182.1,182.05,6.69121938]
[1747184474632,25.91183887,182.1,182.04,26.25121938]
[1747184474838,5.49209138,182.08,182.04,26.25121938]
[1747184475337,19.22231985,182.08,182.04,19.56]
[1747184475547,6.69121938,182.07,182.04,19.56]
[1747184475918,6.69121938,182.05,182.04,19.56]
[1747184476231,19.22231985,182.08,182.04,19.56]
[1747184476422,19.22231985,182.08,182.04,26.25121938]
[1747184476632,19.22231985,182.08,182.03,6.69121938]
[1747184477242,25.91353923,182.08,182.01,19.56]
[1747184477454,6.69121938,182.07,182.02,6.69121938]
[1747184479331,13.73022847,182.08,182.03,6.69121938]
[1747184479550,20.42144785,182.08,182.03,6.69121938]
[1747184480443,25.91353923,182.08,182.0,19.56]
[1747184480622,6.69121938,182.07,182.02,6.69121938]
[1747184482462,5.49269471,182.06,182.02,6.69121938]
[1747184482663,5.49241299,182.07,182.05,6.69121938]
[1747184482831,5.49241299,182.07,182.06,6.69121938]
[1747184483742,5.49214299,182.08,182.06,6.69121938]
[1747184484047,5.49214299,182.08,182.07,6.69121938]
[1747184484753,14.12594558,182.14,182.07,6.69121938]
[1747184485064,14.12594558,182.14,182.11,6.69121938]
[1747184485359,5.49058364,182.13,182.12,6.69121938]
[1747184486644,5.49058364,182.13,182.08,0.14216157]
[1747184486849,5.49058364,182.13,182.11,6.69121938]
[1747184487944,5.49058364,182.13,182.08,0.14216157]
[1747184488288,5.49058364,182.13,182.12,6.69121938]
[1747184488954,5.49058364,182.13,182.08,0.14216157]
[1747184489448,5.49058364,182.13,182.12,6.69121938]
[1747184489656,5.49058364,182.13,182.08,0.14216157]
[1747184489853,5.49058364,182.13,182.07,26.19121938]
[1747184489854,5.49058364,182.13,182.09,6.69121938]
[1747184490173,13.72575131,182.14,182.1,6.69121938]
[1747184491773,13.72575131,182.14,182.07,26.19121938]
[1747184491946,5.88998078,182.15,182.12,6.69121938]
[1747184492946,5.88998078,182.15,182.13,6.69121938]
[1747184493546,5.88998078,182.15,182.12,6.69121938]
[1747184494677,5.88998078,182.15,182.11,6.69121938]
[1747184495244,6.69121938,182.14,182.07,19.5]
[1747184495441,6.69121938,182.14,182.09,6.69121938]
[1747184495668,19.61493274,182.15,182.09,6.69121938]
[1747184495841,26.30615212,182.15,182.09,6.69121938]
[1747184496052,19.61493274,182.15,182.11,6.69121938]
[1747184496468,5.88998078,182.15,182.13,6.69121938]
[1747184496773,5.88998078,182.15,182.12,6.69121938]
[1747184498875,5.88998078,182.15,182.07,31.68356461]
[1747184499060,5.88998078,182.15,182.12,6.69121938]
[1747184500454,5.88998078,182.15,182.07,26.19121938]
[1747184500804,5.88998078,182.15,182.11,6.69121938]
[1747184501179,12.58120016,182.15,182.09,6.69121938]
[1747184501377,12.58120016,182.15,182.07,19.5]
[1747184501378,6.69121938,182.1,182.07,19.5]
[1747184501588,6.69121938,182.08,182.02,19.5]
[1747184501954,6.69121938,182.08,182.02,26.19121938]
[1747184502279,5.49269471,182.06,182.02,19.5]
[1747184502492,6.69121938,182.04,182.0,205.58]
[1747184502698,6.69121938,182.03,182.0,205.58]
[1747184502986,6.69121938,182.04,182.0,205.58]
[1747184503368,19.2244315,182.06,182.0,212.27121938]
[1747184503680,6.69121938,182.04,182.0,205.58]
[1747184503883,6.69121938,182.05,182.0,205.58]
[1747184504265,13.73173679,182.06,182.0,212.27121938]
[1747184504579,6.69121938,182.05,182.0,212.27121938]
[1747184504782,6.69121938,182.05,182.0,205.58]
[1747184504968,6.69121938,182.03,182.0,205.58]
[1747184505166,6.69121938,182.03,181.99,19.5]
[1747184505360,6.69121938,182.02,181.99,19.5]
[1747184505801,6.69121938,182.04,181.99,19.5]
[1747184506454,5.49359995,182.03,181.99,19.5]
[1747184507376,5.49359995,182.03,181.99,26.19121938]
[1747184507600,5.49327733,182.05,182.02,6.69121938]
[1747184507910,5.49327733,182.05,182.03,6.69121938]
[1747184510577,5.49327733,182.05,182.02,6.69121938]
[1747184510778,5.49327733,182.05,182.01,6.69121938]
[1747184511275,5.49327733,182.05,181.99,19.5]
[1747184511477,6.69121938,182.04,181.99,19.5]
[1747184511798,6.69121938,182.03,181.99,19.5]
[1747184512170,5.49390176,182.02,181.99,19.5]
[1747184512602,6.69121938,182.01,181.99,19.5]
[1747184512809,5.49390176,182.02,181.99,19.5]
[1747184512810,12.18512114,182.02,181.99,19.5]
[1747184513323,5.49390176,182.02,181.99,19.5]
[1747184513899,12.18512114,182.02,181.99,19.5]
[1747184515177,38.18512114,182.02,181.99,19.5]
[1747184515401,6.69121938,182.01,181.99,19.5]
[1747184515584,6.55388693,182.01,181.99,19.5]
[1747184515788,38.18512114,182.02,181.99,19.5]
[1747184516482,31.49390176,182.02,181.99,19.5]
[1747184517185,31.49390176,182.02,182.01,6.69121938]
[1747184517498,5.49390176,182.02,182.01,6.69121938]
[1747184517874,0.4,182.04,182.01,6.69121938]
[1747184517875,5.89350861,182.04,182.01,6.69121938]
[1747184518094,5.89350861,182.04,182.03,6.69121938]
[1747184519000,12.58472799,182.04,181.99,26.19121938]
[1747184519378,26.31797343,182.04,181.99,26.19121938]
[1747184519624,19.62675405,182.04,182.0,6.69121938]
[1747184519817,5.89350861,182.04,182.03,6.69121938]
[1747184520325,0.4,182.1,182.03,6.69121938]
[1747184520513,0.4,182.1,182.08,6.69121938]
[1747184520823,5.49178977,182.09,182.06,6.69121938]
[1747184521524,6.69121938,182.07,181.98,1.5625]
[1747184521711,6.69121938,182.05,181.99,19.48]
[1747184521897,7.09121938,182.06,182.01,6.69121938]
[1747184522094,0.4,182.06,182.02,6.69121938]
[1747184522322,0.4,182.06,181.99,19.48]
[1747184522323,0.4,182.06,182.03,6.69121938]
[1747184522737,0.4,182.06,181.99,19.48]
[1747184522738,5.49299642,182.05,181.99,19.48]
[1747184522900,5.49299642,182.05,182.01,6.69121938]
[1747184523100,5.49299642,182.05,182.03,6.69121938]
[1747184523516,5.49299642,182.05,182.02,6.69121938]
[1747184524223,5.49299642,182.05,182.03,6.69121938]
[1747184524531,5.89274033,182.06,182.04,6.69121938]
[1747184524712,5.89274033,182.06,182.05,6.69121938]
[1747184524911,5.49209138,182.08,182.05,6.69121938]
[1747184525108,5.49209138,182.08,182.07,6.69121938]
[1747184526500,5.49209138,182.08,182.02,26.0]
[1747184526702,6.69121938,182.06,182.01,6.69121938]
[1747184527006,5.49209138,182.08,182.02,6.69121938]
[1747184527207,6.69121938,182.07,182.02,6.69121938]
[1747184527415,6.69121938,182.06,182.01,6.69121938]
[1747184528530,5.49299642,182.05,182.01,6.69121938]
[1747184530248,5.49299642,182.05,182.02,6.69121938]
[1747184531618,5.49269471,182.06,182.02,6.69121938]
[1747184532931,12.18391409,182.06,182.01,6.69121938]
[1747184533440,12.18391409,182.06,181.99,19.48]
[1747184533441,19.2244315,182.06,181.99,19.48]
[1747184533740,6.69121938,182.01,181.99,19.48]
[1747184533946,6.69121938,182.02,181.99,19.48]
[1747184534106,6.69121938,182.03,181.99,19.48]
[1747184534307,6.69121938,182.03,181.99,26.17121938]
[1747184535109,5.49390176,182.02,181.99,26.17121938]
[1747184536027,5.49390176,182.02,182.01,6.69121938]
[1747184536627,5.49337858,182.04,182.01,6.69121938]
[1747184536817,0.4,182.09,182.03,6.69121938]
[1747184537119,0.4,182.09,182.08,6.69121938]
[1747184537327,2.81469683,182.1,182.08,6.69121938]
[1747184537536,0.4,182.12,182.06,19.48]
[1747184537537,5.49118664,182.11,182.09,6.69121938]
[1747184537718,5.49118664,182.11,182.1,6.69121938]
[1747184538037,5.48998078,182.15,182.1,6.69121938]
[1747184538229,5.48998078,182.15,182.13,6.69121938]
[1747184538622,5.48998078,182.15,182.08,1.6237]
[1747184538623,5.48998078,182.15,182.14,6.69121938]
[1747184539133,5.48998078,182.15,182.09,0.14216157]
[1747184539433,5.48998078,182.15,182.13,10.6937444]
[1747184539937,5.48998078,182.15,182.11,10.6937444]
[1747184540436,29.90867714,182.15,182.1,10.6937444]
[1747184540935,10.6937444,182.14,182.09,10.6937444]
[1747184541727,5.49058364,182.13,182.1,10.6937444]
[1747184542535,5.49058364,182.13,182.11,10.6937444]
[1747184543537,19.21704276,182.13,182.09,10.6937444]
[1747184543930,19.21704276,182.13,182.07,19.48]
[1747184544126,0.4,182.12,182.07,19.48]
[1747184544436,11.0937444,182.12,182.07,30.1737444]
[1747184544639,10.6937444,182.11,182.07,19.48]
[1747184544822,10.6937444,182.1,182.07,19.48]
[1747184546033,10.6937444,182.08,182.03,205.62]
[1747184546235,10.6937444,182.07,182.03,205.62]
[1747184546454,10.6937444,182.08,182.02,30.1537444]
[1747184547121,5.49178977,182.09,182.07,10.6937444]
[1747184547815,0.4,182.1,182.02,19.46]
[1747184547816,5.8915727,182.1,182.08,10.6937444]
[1747184548021,5.4915727,182.1,182.09,10.6937444]
[1747184548220,5.49058364,182.13,182.09,10.6937444]
[1747184548436,5.49058364,182.13,182.1,10.6937444]
[1747184549558,5.89058364,182.13,182.11,10.6937444]
[1747184549734,5.89058364,182.13,182.12,10.6937444]
[1747184552354,0.4,182.17,182.12,10.6937444]
[1747184552560,5.48969434,182.16,182.15,10.6937444]
[1747184553833,5.48969434,182.16,182.14,10.6937444]
[1747184556059,31.4884742,182.2,182.15,10.6937444]
[1747184556234,31.4884742,182.2,182.19,10.6937444]
[1747184556855,5.48757065,182.23,182.19,10.6937444]
[1747184557030,5.48757065,182.23,182.22,10.6937444]
[1747184557666,5.48757065,182.23,182.21,10.6937444]
[1747184557866,5.48757065,182.23,182.16,19.46]
[1747184558076,5.48757065,182.23,182.2,10.6937444]
[1747184559064,36.6937444,182.21,182.14,30.1537444]
[1747184559244,0.4,182.22,182.2,10.6937444]
[1747184559443,0.4,182.22,182.14,19.46]
[1747184559444,19.20649728,182.23,182.21,10.6937444]
[1747184559668,5.48757065,182.23,182.21,10.6937444]
[1747184559844,5.48757065,182.23,182.22,10.6937444]
[1747184560159,5.48666739,182.26,182.22,10.6937444]
[1747184560465,5.48666739,182.26,182.21,19.46]
[1747184560669,5.48666739,182.26,182.24,10.6937444]
[1747184560920,5.48666739,182.26,182.22,19.46]
[1747184561051,10.6937444,182.24,182.22,19.46]
[1747184561445,31.48666739,182.26,182.17,19.46]
[1747184561446,10.6937444,182.23,182.17,19.46]
[1747184561671,10.6937444,182.23,182.18,10.6937444]
[1747184561850,29.89918776,182.24,182.18,10.6937444]
[1747184562259,10.6937444,182.23,182.18,10.6937444]
[1747184562478,29.89918776,182.24,182.18,10.6937444]
[1747184563875,10.6937444,182.23,182.18,10.6937444]
[1747184564055,10.6937444,182.19,182.14,30.1537444]
[1747184564380,10.6937444,182.17,182.14,19.46]
[1747184564560,10.6937444,182.18,182.14,19.46]
[1747184565370,10.6937444,182.16,182.14,19.46]
[1747184566059,5.48998078,182.15,182.14,19.46]
[1747184567572,16.18372518,182.15,182.1,10.6937444]
[1747184567776,29.90867714,182.15,182.1,10.6937444]
[1747184567977,29.90867714,182.15,182.08,19.46]
[1747184568185,10.6937444,182.1,182.08,19.46]
[1747184568434,10.6937444,182.09,181.99,6.5166]
[1747184568563,10.6937444,182.05,181.99,10.6937444]
[1747184569288,10.6937444,182.04,181.98,19.46]
[1747184569465,10.6937444,182.03,181.98,19.46]
[1747184569666,10.6937444,182.03,181.98,30.1537444]
[1747184569866,10.6937444,182.04,181.99,10.6937444]
[1747184570276,16.18734435,182.03,181.98,19.46]
[1747184570984,5.49359995,182.03,181.98,30.1537444]
[1747184571192,5.49359995,182.03,181.99,10.6937444]
[1747184573206,5.49359995,182.03,182.02,10.6937444]
[1747184573375,16.18613743,182.07,182.02,10.6937444]
[1747184573575,5.49239303,182.07,182.02,10.6937444]
[1747184573979,5.89239303,182.07,182.04,10.6937444]
[1747184575501,5.89239303,182.07,181.99,5.49480205]
[1747184575709,5.89239303,182.07,182.0,0.14216157]
[1747184576070,5.89239303,182.07,182.04,10.6937444]
[1747184576414,5.89239303,182.07,182.05,10.6937444]
[1747184576588,5.89239303,182.07,182.06,10.6937444]
[1747184576589,0.4,182.07,182.06,10.6937444]
[1747184576980,5.49148819,182.1,182.06,10.6937444]
[1747184577188,5.49148819,182.1,182.08,10.6937444]
[1747184577589,5.49148819,182.1,182.05,19.58]
[1747184577801,5.49148819,182.1,182.07,10.6937444]
[1747184578302,5.49148819,182.1,182.08,10.6937444]
[1747184580202,5.89124555,182.11,182.09,10.6937444]
[1747184580402,5.49064058,182.13,182.1,10.6937444]
[1747184580704,5.48998078,182.15,182.12,10.6937444]
[1747184580901,5.48998078,182.15,182.14,10.6937444]
[1747184581119,5.889712,182.16,182.14,10.6937444]
[1747184581276,10.6937444,182.2,182.12,19.58]
[1747184581277,5.4884742,182.2,182.15,10.6937444]
[1747184581478,5.4884742,182.2,182.19,10.6937444]
[1747184581674,13.72065985,182.21,182.19,10.6937444]
[1747184581877,5.48757065,182.23,182.19,10.6937444]
[1747184582108,8.18456696,182.23,182.21,10.6937444]
[1747184582313,5.48757065,182.23,182.22,10.6937444]
[1747184582478,5.48666739,182.26,182.22,10.6937444]
[1747184582680,5.48666739,182.26,182.24,10.6937444]
[1747184583590,13.71605177,182.27,182.24,10.6937444]
[1747184583986,13.71605177,182.27,182.19,19.56]
[1747184583987,5.48606539,182.28,182.26,10.6937444]
[1747184584201,13.7117146,182.33,182.27,10.6937444]
[1747184584406,5.48426017,182.34,182.32,10.6937444]
[1747184584578,5.48426017,182.34,182.33,10.6937444]
[1747184584779,5.48305735,182.38,182.33,30.2537444]
[1747184584981,5.48305735,182.38,182.37,10.6937444]
[1747184585207,19.19070073,182.38,182.36,10.6937444]
[1747184585410,10.6937444,182.37,182.26,0.42648471]
[1747184585581,29.88654983,182.36,182.31,10.6937444]
[1747184585985,10.6937444,182.35,182.27,39.3]
[1747184586207,10.6937444,182.35,182.3,10.6937444]
[1747184586392,19.19280543,182.36,182.33,10.6937444]
[1747184586915,19.19280543,182.36,182.28,45.56]
[1747184586916,10.6937444,182.34,182.29,10.6937444]
[1747184587095,10.6937444,182.35,182.3,10.6937444]
[1747184587693,19.1949106,182.34,182.3,10.6937444]
[1747184588190,19.1949106,182.34,182.31,10.6937444]
[1747184588391,5.48426017,182.34,182.33,10.6937444]
[1747184588584,5.483358,182.37,182.33,21.3874888]
[1747184588778,5.483358,182.37,182.36,10.6937444]
[1747184588982,5.483358,182.37,182.36,30.2537444]
[1747184589183,5.48245614,182.4,182.36,30.2537444]
[1747184589392,5.48245614,182.4,182.37,10.6937444]
[1747184589592,5.48245614,182.4,182.38,10.6937444]
[1747184589810,5.48245614,182.4,182.36,19.56]
[1747184589811,13.70599983,182.41,182.37,10.6937444]
[1747184590125,10.6937444,182.38,182.26,0.14216157]
[1747184590428,10.6937444,182.37,182.32,10.6937444]
[1747184590587,10.6937444,182.36,182.31,10.6937444]
[1747184591004,10.6937444,182.35,182.3,10.6937444]
[1747184591207,26.4,182.4,182.29,19.72]
[1747184591208,10.6937444,182.36,182.31,10.6937444]
[1747184591798,5.48395941,182.35,182.3,19.56]
[1747184591994,16.17770381,182.35,182.3,30.2537444]
[1747184592307,16.17770381,182.35,182.3,19.56]
[1747184592308,10.6937444,182.32,182.3,19.56]
[1747184592695,10.6937444,182.33,182.3,19.56]
[1747184593417,15.77412292,182.31,182.25,35.33412292]
[1747184593585,15.77412292,182.31,182.26,15.77412292]
[1747184593990,5.48546352,182.3,182.26,15.77412292]
[1747184594291,15.77412292,182.28,182.25,19.56]
[1747184594927,15.77412292,182.26,182.25,19.56]
[1747184595229,15.77412292,182.26,182.19,39.26]
[1747184595528,15.77412292,182.24,182.19,39.26]
[1747184595901,5.48757065,182.23,182.19,55.03412292]
[1747184596114,15.77412292,182.2,182.19,19.56]
[1747184596624,5.48757065,182.23,182.19,19.56]
[1747184596625,15.77412292,182.22,182.19,19.56]
[1747184597126,15.77412292,182.21,182.19,19.56]
[1747184597507,5.4884742,182.2,182.19,19.56]
[1747184597823,21.26259712,182.2,182.19,19.56]
[1747184598027,34.98378263,182.2,182.14,19.56]
[1747184598200,15.77412292,182.18,182.14,19.56]
[1747184598723,15.77412292,182.17,182.14,19.56]
[1747184598930,15.77412292,182.16,182.14,19.56]
[1747184599109,15.77412292,182.17,182.14,19.56]
[1747184599619,5.4896794,182.16,182.14,19.56]
[1747184599825,21.26380232,182.16,182.14,19.56]
[1747184600134,21.26380232,182.16,182.07,35.47412292]
[1747184600135,5.4896794,182.16,182.13,15.77412292]
[1747184600329,5.4896794,182.16,182.09,19.56]
[1747184600709,21.26380232,182.16,182.11,15.77412292]
[1747184600903,5.4896794,182.16,182.12,15.77412292]
[1747184601115,5.4896794,182.16,182.13,15.77412292]
[1747184601325,5.4896794,182.16,182.12,15.77412292]
[1747184601627,5.4896794,182.16,182.13,15.77412292]
[1747184601831,5.4896794,182.16,182.14,15.77412292]
[1747184602306,5.4896794,182.16,182.13,15.77412292]
[1747184602924,5.48907673,182.18,182.13,15.77412292]
[1747184603106,5.48907673,182.18,182.16,15.77412292]
[1747184603306,5.48817298,182.21,182.17,15.77412292]
[1747184603532,5.48817298,182.21,182.18,15.77412292]
[1747184604234,5.48817298,182.21,182.12,5.63300263]
[1747184604235,5.48817298,182.21,182.2,15.77412292]
[1747184604406,5.48726953,182.24,182.2,15.77412292]
[1747184605307,13.71538919,182.28,182.22,15.77412292]
[1747184605528,5.48636637,182.27,182.24,15.77412292]
[1747184605836,5.48636637,182.27,182.23,15.77412292]
[1747184606013,5.48636637,182.27,182.25,15.77412292]
[1747184606634,5.4860837,182.28,182.26,15.77412292]
[1747184606807,5.4860837,182.28,182.23,19.86]
[1747184607013,5.4860837,182.28,182.24,15.77412292]
[1747184607207,5.4860837,182.28,182.25,15.77412292]
[1747184608122,5.4860837,182.28,182.24,15.77412292]
[1747184608630,5.4860837,182.28,182.17,0.14216157]
[1747184608831,5.4860837,182.28,182.18,19.86]
[1747184608832,15.77412292,182.22,182.18,19.86]
[1747184609608,0.4,182.26,182.18,19.86]
[1747184609824,15.77412292,182.23,182.18,19.86]
[1747184610040,15.77412292,182.22,182.18,19.86]
[1747184610820,19.20544336,182.24,182.18,19.86]
[1747184611018,15.77412292,182.22,182.18,19.86]
[1747184612413,15.77412292,182.21,182.18,19.86]
[1747184612940,5.4884742,182.2,182.18,19.86]
[1747184613437,0.4,182.23,182.19,15.77412292]
[1747184613610,5.88769649,182.23,182.18,19.86]
[1747184613817,15.77412292,182.19,182.14,19.86]
[1747184614015,15.77412292,182.18,182.14,19.86]
[1747184614215,15.77412292,182.19,182.14,35.63412292]
[1747184614636,0.4,182.21,182.18,15.77412292]
[1747184615139,5.4884742,182.2,182.14,19.86]
[1747184615314,11.09245743,182.19,182.14,19.86]
[1747184615515,0.4,182.19,182.14,30.55245743]
[1747184616243,11.09245743,182.19,182.14,30.55245743]
[1747184616425,0.4,182.19,182.14,30.55245743]
[1747184617336,19.21176857,182.18,182.14,30.55245743]
[1747184618540,5.48907673,182.18,182.17,10.69245743]
[1747184618717,5.4884742,182.2,182.17,10.69245743]
[1747184618920,5.48757065,182.23,182.19,10.69245743]
[1747184619120,5.48757065,182.23,182.22,10.69245743]
[1747184619319,19.20574486,182.24,182.22,10.69245743]
[1747184619549,5.48726953,182.24,182.23,10.69245743]
[1747184619918,5.48666739,182.26,182.23,10.69245743]
[1747184620142,5.48666739,182.26,182.25,10.69245743]
[1747184621127,5.48546352,182.3,182.25,10.69245743]
[1747184621332,5.48546352,182.3,182.28,10.69245743]
[1747184621837,5.48546352,182.3,182.29,10.69245743]
[1747184622218,24.8034047,182.34,182.29,30.55245743]
[1747184622219,5.48456096,182.33,182.29,30.55245743]
[1747184622445,5.48456096,182.33,182.32,10.69245743]
[1747184623333,19.19198289,182.37,182.29,19.86]
[1747184623528,19.19198289,182.37,182.32,15.76292079]
[1747184623919,5.483358,182.37,182.35,15.76292079]
[1747184624337,5.483358,182.37,182.34,15.76292079]
[1747184624541,5.483358,182.37,182.36,15.76292079]
[1747184625331,13.70644499,182.4,182.36,15.76292079]
[1747184625524,5.48215558,182.41,182.36,19.86]
[1747184625738,5.48215558,182.41,182.38,15.76292079]
[1747184626124,21.24507637,182.41,182.36,19.86]
[1747184626448,19.18754453,182.41,182.37,15.76292079]
[1747184627349,13.70538895,182.41,182.37,15.76292079]
[1747184627855,5.48185505,182.42,182.39,15.76292079]
[1747184628028,5.47975231,182.49,182.41,15.76292079]
[1747184628224,5.47975231,182.49,182.46,15.76292079]
[1747184628933,5.47975231,182.49,182.48,15.76292079]
[1747184629344,5.47885163,182.52,182.48,15.76292079]
[1747184629534,34.9389015,182.52,182.44,0.14216157]
[1747184629735,34.9389015,182.52,182.47,15.76292079]
[1747184630032,19.17598071,182.52,182.47,15.76292079]
[1747184630438,34.9389015,182.52,182.47,15.76292079]
[1747184630652,5.47885163,182.52,182.49,15.76292079]
[1747184631166,5.47795124,182.55,182.51,15.76292079]
[1747184631325,5.47795124,182.55,182.5,19.86]
[1747184631657,13.69464242,182.56,182.52,15.76292079]
[1747184632152,15.76292079,182.53,182.5,19.86]
[1747184633550,15.76292079,182.51,182.45,19.84]
[1747184633756,19.17598071,182.52,182.45,19.84]
[1747184634064,19.17598071,182.52,182.47,15.76292079]
[1747184634246,19.17598071,182.52,182.45,19.84]
[1747184634247,15.76292079,182.48,182.45,19.84]
[1747184635250,62.33315966,182.52,182.45,19.84]
[1747184635251,19.17598071,182.52,182.45,19.84]
[1747184635467,13.69712908,182.52,182.45,19.84]
[1747184635645,13.69712908,182.52,182.48,15.76292079]
[1747184636255,13.69712908,182.52,182.45,19.84]
[1747184636566,13.69712908,182.52,182.48,15.76292079]
[1747184636757,13.69712908,182.52,182.47,15.76292079]
[1747184637462,5.47825134,182.54,182.49,15.76292079]
[1747184637654,21.24117213,182.54,182.49,15.76292079]
[1747184637852,21.24117213,182.54,182.48,15.76292079]
[1747184638051,19.17387969,182.54,182.49,15.76292079]
[1747184638253,34.93680048,182.54,182.49,15.76292079]
[1747184638473,34.93680048,182.54,182.45,19.98216157]
[1747184638474,34.93680048,182.54,182.46,0.14216157]
[1747184638660,34.93680048,182.54,182.49,15.76292079]
[1747184638871,5.47825134,182.54,182.53,15.76292079]
[1747184639552,13.69347275,182.57,182.53,15.76292079]
[1747184639553,19.1708239,182.57,182.53,15.76292079]
[1747184640059,19.1708239,182.57,182.48,26.14216157]
[1747184640060,5.47735115,182.57,182.56,15.76292079]
[1747184640259,6.5437,182.66,182.56,15.76292079]
[1747184640260,5.47645125,182.6,182.56,15.76292079]
[1747184640451,5.47525186,182.64,182.53,0.42648471]
[1747184640650,5.47525186,182.64,182.56,0.14216157]
[1747184640849,5.47525186,182.64,182.6,15.76292079]
[1747184641245,5.47525186,182.64,182.61,15.76292079]
[1747184641446,5.47525186,182.64,182.63,15.76292079]
[1747184641645,15.76292079,182.66,182.6,19.94]
[1747184641870,15.76292079,182.65,182.6,19.94]
[1747184642072,15.76292079,182.61,182.55,19.94]
[1747184642281,15.76292079,182.63,182.57,15.76292079]
[1747184642455,15.76292079,182.63,182.55,19.94]
[1747184642456,15.76292079,182.65,182.6,15.76292079]
[1747184642654,15.76292079,182.66,182.57,0.14216157]
[1747184642849,15.76292079,182.66,182.56,0.14216157]
[1747184643171,46.52958516,182.68,182.56,0.14216157]
[1747184643349,19.15932022,182.68,182.6,15.76292079]
[1747184643558,19.16233232,182.65,182.6,15.76292079]
[1747184643759,19.16233232,182.65,182.59,15.76292079]
[1747184643976,5.47495209,182.65,182.63,15.76292079]
[1747184644173,5.47495209,182.65,182.58,26.0]
[1747184644174,13.68511216,182.69,182.64,15.76292079]
[1747184644472,5.47315417,182.71,182.67,15.76292079]
[1747184644680,5.47315417,182.71,182.68,15.76292079]
[1747184644856,5.47315417,182.71,182.69,15.76292079]
[1747184645056,5.47315417,182.71,182.7,15.76292079]
[1747184645253,5.47165681,182.76,182.69,20.78]
[1747184645477,29.77501011,182.76,182.69,20.78]
[1747184645659,19.15289481,182.74,182.69,20.78]
[1747184645972,10.62421126,182.7,182.63,31.40421126]
[1747184646140,19.15289481,182.74,182.66,26.0]
[1747184646344,5.47225566,182.74,182.72,10.62421126]
[1747184646568,5.47225566,182.74,182.71,10.62421126]
[1747184646745,5.47225566,182.74,182.66,26.0]
[1747184646943,19.15289481,182.74,182.68,10.62421126]
[1747184647145,19.15289481,182.74,182.66,26.0]
[1747184647146,19.14451372,182.82,182.66,26.14216157]
[1747184647348,19.14451372,182.82,182.73,10.62421126]
[1747184649054,10.62421126,182.76,182.72,22.04]
[1747184649287,26.0,182.79,182.73,15.69210702]
[1747184649455,19.14451372,182.82,182.72,22.04]
[1747184649656,15.69210702,182.8,182.75,15.69210702]
[1747184649858,15.69210702,182.8,182.72,22.04]
[1747184650058,15.69210702,182.8,182.74,15.69210702]
[1747184650265,15.69210702,182.77,182.72,22.04]
[1747184650465,15.69210702,182.73,182.65,205.0]
[1747184650762,0.28432314,182.75,182.67,15.69210702]
[1747184651087,15.69210702,182.74,182.68,15.69210702]
[1747184651286,15.69210702,182.73,182.65,205.0]
[1747184651488,0.28432314,182.75,182.67,15.69210702]
[1747184651692,34.84814663,182.71,182.65,220.69210702]